lending/lending_fUSD_20251116
["ID","MTS","AMOUNT","RATE_DAILY","PERIOD"]
[394141585,1763319042499,-300.0,0.00034471,2]
[394141586,1763319042509,-300.0,0.00034475,2]
[394141587,1763319042518,-300.0,0.00034481,2]
[394141588,1763319042528,-214.89664467,0.00034494,2]
[394141589,1763319042538,-300.0,0.00034498,2]
[394141590,1763319042551,-300.0,0.00034503,2]
[394141591,1763319042561,-150.0,0.0003451,2]
[394141592,1763319042570,-300.0,0.00034514,2]
[394141593,1763319042580,-300.0,0.00034519,2]
[394141594,1763319042589,-300.0,0.0003452,2]
[394141595,1763319042599,-1000.0,0.00034521,7]
[394141596,1763319042609,-300.0,0.00034538,2]
[394141597,1763319042618,-300.0,0.00034546,2]
[394141598,1763319042628,-300.0,0.00034554,2]
[394141599,1763319042638,-300.0,0.00034556,2]
[394141600,1763319042648,-291.93441405,0.00034556,2]
[394141601,1763319042658,-300.0,0.00034558,2]
[394141602,1763319042668,-300.0,0.00034559,2]
[394141603,1763319042677,-300.0,0.0003457,2]
[394141604,1763319042686,-34945.3083811,0.00034572,3]
[394141605,1763319042696,-300.0,0.00034581,2]
[394141606,1763319042705,-300.0,0.000346,2]
[394141607,1763319042715,-300.0,0.00034602,2]
[394141609,1763319042726,-300.0,0.00034602,2]
[394141610,1763319042736,-300.0,0.00034603,2]
[394141611,1763319042745,-300.0,0.00034605,2]
[394141612,1763319042755,-300.0,0.00034618,2]
[394141614,1763319042764,-300.0,0.0003463,2]
[394141616,1763319042773,-300.0,0.00034635,2]
[394141618,1763319042783,-300.0,0.00034636,2]
[394141620,1763319042793,-200.90410886,0.0003464,2]
[394141622,1763319042802,-300.0,0.00034641,2]
[394141624,1763319042811,-300.0,0.00034649,2]
[394141626,1763319042820,-150.0,0.0003467,2]
[394141628,1763319042830,-300.0,0.00034674,2]
[394141630,1763319042839,-300.0,0.00034684,2]
[394141631,1763319042848,-300.0,0.00034685,2]
[394141632,1763319042858,-300.0,0.00034686,2]
[394141633,1763319042868,-300.0,0.00034701,2]
[394141634,1763319042878,-300.0,0.00034703,2]
[394141635,1763319042887,-300.0,0.00034721,2]
[394141636,1763319042896,-300.0,0.00034729,2]
[394141637,1763319042906,-300.0,0.00034734,2]
[394141638,1763319042915,-300.0,0.00034741,2]
[394141639,1763319042925,-300.0,0.00034744,2]
[394141640,1763319042935,-300.0,0.00034745,2]
[394141641,1763319042945,-300.0,0.00034746,2]
[394141642,1763319042955,-214.89664468,0.00034747,2]
[394141643,1763319042965,-300.0,0.00034755,2]
[394141645,1763319042977,-300.0,0.00034764,2]
[394141647,1763319042988,-300.0,0.00034766,2]
[394141649,1763319042998,-877.34306806,0.00034769,2]
[394141652,1763319043008,-300.0,0.00034777,2]
[394141656,1763319043018,-14996.93274094,0.00034779,2]
[394141657,1763319043027,-300.0,0.0003478,2]
[394141658,1763319043037,-300.0,0.00034782,2]
[394141659,1763319043047,-300.0,0.00034782,2]
[394141660,1763319043056,-300.0,0.00034785,2]
[394141661,1763319043066,-300.0,0.00034789,2]
[394141662,1763319043076,-277.35679052,0.00034793,9]
[394141663,1763319043085,-287.61899177,0.00034793,9]
[394141664,1763319043095,-298.26089446,0.00034793,9]
[394141666,1763319043104,-309.29654756,0.00034793,9]
[394141667,1763319043113,-320.74051982,0.00034793,9]
[394141668,1763319043122,-332.60791905,0.00034793,9]
[394141669,1763319043132,-344.91441206,0.00034793,9]
[394141670,1763319043142,-357.6762453,0.00034793,9]
[394141671,1763319043152,-370.91026638,0.00034793,9]
[394141672,1763319043162,-384.63394623,0.00034793,9]
[394141673,1763319043171,-398.86540225,0.00034793,9]
[394141674,1763319043181,-150.0,0.00034793,9]
[394141675,1763319043190,-488.0,0.00034794,9]
[394141676,1763319043199,-1000.0,0.00034795,7]
[394141677,1763319043209,-300.0,0.00034799,2]
[394141678,1763319043218,-172.79928841,0.00034801,2]
[394141679,1763319043234,-300.0,0.00034818,2]
[394141680,1763319043243,-700.23,0.00034822,2]
[394141681,1763319043254,-700.23,0.00034822,2]
[394141682,1763319043264,-700.23,0.00034822,2]
[394141683,1763319043274,-700.23,0.00034822,2]
[394141684,1763319043283,-700.23,0.00034822,2]
[394141685,1763319043293,-700.23,0.00034822,2]
[394141686,1763319043302,-700.23,0.00034822,2]
[394141687,1763319043314,-700.23,0.00034822,2]
[394141688,1763319043324,-700.23,0.00034822,2]
[394141689,1763319043334,-700.23,0.00034822,2]
[394141690,1763319043343,-700.23,0.00034822,2]
[394141691,1763319043353,-700.23,0.00034822,2]
[394141692,1763319043363,-700.23,0.00034822,2]
[394141693,1763319043372,-700.23,0.00034822,2]
[394141694,1763319043382,-700.23,0.00034822,2]
[394141695,1763319043391,-700.23,0.00034822,2]
[394141696,1763319043401,-700.23,0.00034822,2]
[394141697,1763319043411,-700.23,0.00034822,2]
[394141698,1763319043421,-700.23,0.00034822,2]
[394141699,1763319043431,-414.79,0.00034822,2]
[394141700,1763319043441,-34945.3083811,0.00034829,3]
[394141701,1763319043451,-300.0,0.00034834,2]
[394141702,1763319043602,-300.0,0.00034838,2]
[394141703,1763319043613,-151.0,0.00034839,31]
[394141704,1763319043623,-151.0,0.00034839,31]
[394141705,1763319043632,-151.0,0.00034839,31]
[394141706,1763319043642,-151.0,0.00034839,31]
[394141707,1763319043652,-151.0,0.00034839,31]
[394141708,1763319043661,-151.0,0.00034839,31]
[394141709,1763319043671,-299.701289,0.00034839,31]
[394141710,1763319043681,-151.0,0.00034839,31]
[394141711,1763319043690,-299.701289,0.00034839,31]
[394141712,1763319043700,-151.0,0.00034839,31]
[394141713,1763319043709,-299.701289,0.00034839,31]
[394141714,1763319043719,-151.0,0.00034839,31]
[394141715,1763319043730,-151.0,0.00034839,31]
[394141716,1763319043740,-299.701289,0.00034839,31]
[394141717,1763319043749,-165.666462,0.00034839,31]
[394141718,1763319043759,-199.757326,0.00034839,31]
[394141720,1763319043768,-199.757326,0.00034839,31]
[394141721,1763319043778,-199.757326,0.00034839,31]
[394141722,1763319043787,-199.757326,0.00034839,31]
[394141723,1763319043796,-151.0,0.00034839,31]
[394141724,1763319043805,-151.0,0.00034839,31]
[394141725,1763319043815,-151.0,0.00034839,31]
[394141726,1763319043825,-151.0,0.00034839,31]
[394141727,1763319043834,-300.0,0.00034842,2]
[394141728,1763319043842,-29561.0,0.00034849,2]
[394141729,1763319043852,-150.0,0.00034849,7]
[394141730,1763319043862,-34945.3083811,0.00034859,3]
[394141731,1763319043873,-150.0,0.00034868,20]
[394141732,1763319043882,-151.0,0.00034869,31]
[394141733,1763319043892,-160.745587,0.00034869,31]
[394141734,1763319043902,-151.0,0.00034869,31]
[394141735,1763319043911,-151.0,0.00034869,31]
[394141736,1763319043920,-183.538171,0.00034869,31]
[394141737,1763319043930,-238.181119,0.00034869,31]
[394141738,1763319043940,-164.04266,0.00034869,31]
[394141739,1763319043950,-151.0,0.00034869,31]
[394141740,1763319043959,-151.0,0.00034869,31]
[394141741,1763319043969,-151.0,0.00034869,31]
[394141742,1763319043980,-151.0,0.00034869,31]
[394141743,1763319043990,-244.10011,0.00034869,31]
[394141744,1763319044000,-151.0,0.00034869,31]
[394141745,1763319044010,-151.0,0.00034869,31]
[394141746,1763319044022,-151.0,0.00034869,31]
[394141747,1763319044032,-153.687711,0.00034869,31]
[394141748,1763319044041,-169.198971,0.00034869,31]
[394141749,1763319044050,-153.818967,0.00034869,31]
[394141750,1763319044059,-151.0,0.00034869,31]
[394141751,1763319044068,-151.0,0.00034869,31]
[394141752,1763319044077,-151.0,0.00034869,31]
[394141753,1763319044086,-151.0,0.00034869,31]
[394141754,1763319044095,-151.0,0.00034869,31]
[394141755,1763319044104,-151.0,0.00034869,31]
[394141756,1763319044114,-153.714524,0.00034869,31]
[394141757,1763319044123,-151.0,0.00034869,31]
[394141758,1763319044132,-151.0,0.00034869,31]
[394141759,1763319044141,-151.0,0.00034869,31]
[394141760,1763319044151,-238.280724,0.00034869,31]
[394141761,1763319044160,-151.0,0.00034869,31]
[394141762,1763319044169,-238.280724,0.00034869,31]
[394141763,1763319044178,-151.0,0.00034869,31]
[394141764,1763319044188,-151.0,0.00034869,31]
[394141765,1763319044197,-238.280724,0.00034869,31]
[394141766,1763319044206,-151.0,0.00034869,31]
[394141767,1763319044215,-238.280724,0.00034869,31]
[394141768,1763319044229,-151.0,0.00034869,31]
[394141769,1763319044239,-151.0,0.00034869,31]
[394141770,1763319044248,-174.145706,0.00034869,31]
[394141771,1763319044257,-151.0,0.00034869,31]
[394141772,1763319044266,-151.0,0.00034869,31]
[394141773,1763319044277,-281.145595,0.00034869,31]
[394141774,1763319044286,-151.0,0.00034869,31]
[394141775,1763319044295,-151.0,0.00034869,31]
[394141776,1763319044305,-151.0,0.00034869,31]
[394141777,1763319044314,-151.0,0.00034869,15]
[394141778,1763319044323,-151.0,0.00034869,15]
[394141779,1763319044332,-151.0,0.00034869,15]
[394141780,1763319044341,-239.166881,0.00034869,15]
[394141781,1763319044351,-151.0,0.00034869,31]
[394141782,1763319044360,-151.0,0.00034869,31]
[394141783,1763319044370,-151.0,0.00034869,31]
[394141784,1763319044379,-151.0,0.00034869,31]
[394141785,1763319044388,-151.0,0.00034869,31]
[394141786,1763319044397,-294.073807,0.00034869,31]
[394141787,1763319044407,-151.0,0.00034869,31]
[394141788,1763319044415,-151.0,0.00034869,31]
[394141789,1763319044424,-299.701289,0.00034869,31]
[394141790,1763319044434,-151.0,0.00034869,31]
[394141791,1763319044443,-299.701289,0.00034869,31]
[394141792,1763319044452,-151.0,0.00034869,31]
[394141793,1763319044461,-299.701289,0.00034869,31]
[394141794,1763319044470,-151.0,0.00034869,31]
[394141795,1763319044481,-151.0,0.00034869,31]
[394141796,1763319044490,-299.701289,0.00034869,31]
[394141797,1763319044500,-199.757326,0.00034869,31]
[394141798,1763319044509,-199.757326,0.00034869,31]
[394141799,1763319044518,-199.757326,0.00034869,31]
[394141800,1763319044527,-199.757326,0.00034869,31]
[394141801,1763319044537,-151.0,0.00034869,31]
[394141802,1763319044546,-151.0,0.00034869,31]
[394141803,1763319044556,-151.0,0.00034869,31]
[394141804,1763319044565,-194.389047,0.00034869,31]
[394141805,1763319044574,-151.0,0.00034869,31]
[394141806,1763319044583,-151.0,0.00034869,31]
[394141807,1763319044592,-151.0,0.00034869,31]
[394141808,1763319044602,-187.597508,0.00034869,31]
[394141809,1763319044611,-182.483269,0.00034869,31]
[394141810,1763319044620,-151.0,0.00034869,31]
[394141811,1763319044630,-151.0,0.00034869,31]
[394141812,1763319044639,-151.0,0.00034869,31]
[394141813,1763319044648,-510.053752,0.00034869,28]
[394141814,1763319044657,-510.053752,0.00034869,28]
[394141815,1763319044666,-510.053752,0.00034869,28]
[394141816,1763319044676,-510.053752,0.00034869,28]
[394141817,1763319044685,-151.0,0.00034869,31]
[394141818,1763319044694,-219.036736,0.00034869,31]
[394141819,1763319044703,-151.0,0.00034869,31]
[394141820,1763319044713,-151.0,0.00034869,31]
[394141821,1763319044722,-151.0,0.00034869,31]
[394141822,1763319044732,-151.0,0.00034869,31]
[394141823,1763319044742,-151.0,0.00034869,31]
[394141824,1763319044751,-151.0,0.00034869,31]
[394141825,1763319044760,-151.0,0.00034869,31]
[394141826,1763319044770,-151.0,0.00034869,31]
[394141827,1763319044780,-301.95128,0.00034869,31]
[394141828,1763319044789,-159.588753,0.00034869,31]
[394141829,1763319044798,-151.0,0.00034869,31]
[394141830,1763319044807,-151.0,0.00034869,31]
[394141831,1763319044816,-151.0,0.00034869,31]
[394141832,1763319044826,-151.0,0.00034869,31]
[394141833,1763319044835,-151.0,0.00034869,30]
[394141834,1763319044844,-151.0,0.00034869,31]
[394141835,1763319044853,-230.226944,0.00034869,31]
[394141836,1763319044862,-151.0,0.00034869,31]
[394141837,1763319044871,-151.0,0.00034869,31]
[394141838,1763319044881,-270.835263,0.00034869,31]
[394141839,1763319044891,-151.0,0.00034869,31]
[394141840,1763319044901,-508.655404,0.00034869,31]
[394141841,1763319044910,-151.0,0.00034869,31]
[394141842,1763319044920,-508.655404,0.00034869,31]
[394141843,1763319044929,-508.655404,0.00034869,31]
[394141844,1763319044939,-508.655404,0.00034869,31]
[394141845,1763319044948,-151.0,0.00034869,31]
[394141846,1763319044958,-151.0,0.00034869,31]
[394141847,1763319044967,-151.0,0.00034869,31]
[394141848,1763319044979,-174.433953,0.00034869,31]
[394141849,1763319044989,-174.433953,0.00034869,31]
[394141850,1763319044999,-174.433953,0.00034869,31]
[394141851,1763319045009,-151.0,0.00034869,31]
[394141852,1763319045018,-151.0,0.00034869,31]
[394141853,1763319045027,-174.433953,0.00034869,31]
[394141854,1763319045037,-151.0,0.00034869,31]
[394141855,1763319045046,-151.0,0.00034869,31]
[394141856,1763319045055,-153.708628,0.00034869,31]
[394141857,1763319045064,-151.0,0.00034869,31]
[394141858,1763319045074,-151.0,0.00034869,31]
[394141859,1763319045083,-151.0,0.00034869,31]
[394141860,1763319045092,-188.279895,0.00034869,31]
[394141861,1763319045102,-188.279895,0.00034869,31]
[394141862,1763319045111,-151.0,0.00034869,31]
[394141863,1763319045121,-188.279895,0.00034869,31]
[394141864,1763319045130,-151.0,0.00034869,31]
[394141865,1763319045140,-188.279895,0.00034869,31]
[394141866,1763319045149,-151.0,0.00034869,31]
[394141867,1763319045158,-151.0,0.00034869,31]
[394141868,1763319045167,-151.0,0.00034869,31]
[394141869,1763319045176,-151.0,0.00034869,31]
[394141870,1763319045185,-151.0,0.00034869,31]
[394141871,1763319045195,-151.0,0.00034869,31]
[394141872,1763319045204,-151.0,0.00034869,31]
[394141873,1763319045213,-237.820981,0.00034869,31]
[394141874,1763319045223,-151.0,0.00034869,31]
[394141875,1763319045234,-151.0,0.00034869,31]
[394141876,1763319045244,-151.0,0.00034869,31]
[394141877,1763319045253,-151.0,0.00034869,31]
[394141878,1763319045262,-151.0,0.00034869,31]
[394141879,1763319045271,-192.897311,0.00034869,31]
[394141880,1763319045282,-151.0,0.00034869,31]
[394141881,1763319045292,-163.405208,0.00034869,31]
[394141882,1763319045301,-151.0,0.00034869,31]
[394141883,1763319045311,-151.0,0.00034869,31]
[394141884,1763319045320,-151.0,0.00034869,31]
[394141885,1763319045330,-151.0,0.00034869,31]
[394141886,1763319045340,-235.011081,0.00034869,31]
[394141887,1763319045350,-151.0,0.00034869,31]
[394141888,1763319045359,-235.011081,0.00034869,31]
[394141889,1763319045368,-151.0,0.00034869,31]
[394141890,1763319045378,-235.011081,0.00034869,31]
[394141891,1763319045387,-151.0,0.00034869,31]
[394141892,1763319045396,-151.0,0.00034869,31]
[394141893,1763319045405,-235.011081,0.00034869,31]
[394141894,1763319045415,-151.0,0.00034869,31]
[394141895,1763319045424,-151.0,0.00034869,31]
[394141896,1763319045433,-151.0,0.00034869,31]
[394141897,1763319045442,-277.335366,0.00034869,31]
[394141898,1763319045451,-216.330313,0.00034869,30]
[394141899,1763319045460,-216.330313,0.00034869,30]
[394141900,1763319045470,-216.330313,0.00034869,30]
[394141901,1763319045483,-177.820604,0.00034869,31]
[394141902,1763319045492,-216.330313,0.00034869,30]
[394141903,1763319045502,-177.820604,0.00034869,31]
[394141904,1763319045511,-177.820604,0.00034869,31]
[394141905,1763319045521,-177.820604,0.00034869,31]
[394141906,1763319045530,-151.0,0.00034869,31]
[394141907,1763319045540,-151.0,0.00034869,31]
[394141908,1763319045550,-151.0,0.00034869,31]
[394141909,1763319045561,-300.0,0.00034874,2]
[394141910,1763319045570,-4203.1448761,0.00034879,2]
[394141911,1763319045580,-781374.0311911,0.00034879,2]
[394141912,1763319045589,-151.0,0.00034879,31]
[394141913,1763319045599,-202.005094,0.00034879,31]
[394141914,1763319045608,-151.0,0.00034879,31]
[394141915,1763319045617,-151.0,0.00034879,31]
[394141916,1763319045626,-15400.8044817,0.00034879,2]
[394141917,1763319045636,-151.0,0.00034879,31]
[394141918,1763319045645,-170.963641,0.00034879,31]
[394141919,1763319045655,-151.0,0.00034879,31]
[394141920,1763319045664,-151.0,0.00034879,31]
[394141921,1763319045673,-151.0,0.00034879,31]
[394141922,1763319045682,-151.0,0.00034879,31]
[394141923,1763319045691,-151.0,0.00034879,31]
[394141924,1763319045700,-151.0,0.00034879,31]
[394141925,1763319045709,-58080.361808,0.00034879,2]
[394141926,1763319045718,-151.0,0.00034879,31]
[394141928,1763319045730,-151.0,0.00034879,31]
[394141929,1763319045739,-151.0,0.00034879,31]
[394141930,1763319045748,-151.0,0.00034879,31]
[394141932,1763319045757,-151.0,0.00034879,31]
[394141933,1763319045766,-151.0,0.00034879,31]
[394141934,1763319045775,-151.0,0.00034879,31]
[394141936,1763319045785,-151.0,0.00034879,31]
[394141937,1763319045793,-238.280724,0.00034879,31]
[394141938,1763319045805,-151.0,0.00034879,31]
[394141939,1763319045815,-238.280724,0.00034879,31]
[394141940,1763319045825,-151.0,0.00034879,31]
[394141941,1763319045835,-238.280724,0.00034879,31]
[394141942,1763319045847,-151.0,0.00034879,31]
[394141943,1763319045857,-238.280724,0.00034879,31]
[394141944,1763319045867,-151.0,0.00034879,31]
[394141945,1763319045877,-151.0,0.00034879,31]
[394141946,1763319045889,-170.456547,0.00034879,31]
[394141947,1763319045899,-152.971918,0.00034879,31]
[394141948,1763319045909,-162.0971,0.00034879,31]
[394141949,1763319045918,-151.0,0.00034879,31]
[394141950,1763319045927,-151.0,0.00034879,15]
[394141951,1763319045937,-151.0,0.00034879,15]
[394141952,1763319045946,-151.0,0.00034879,15]
[394141953,1763319045956,-151.0,0.00034879,31]
[394141954,1763319045966,-153.023954,0.00034879,31]
[394141955,1763319045977,-151.0,0.00034879,31]
[394141956,1763319045988,-151.0,0.00034879,31]
[394141957,1763319045999,-151.0,0.00034879,31]
[394141958,1763319046009,-151.0,0.00034879,31]
[394141959,1763319046019,-151.0,0.00034879,31]
[394141960,1763319046028,-299.701289,0.00034879,31]
[394141961,1763319046038,-151.0,0.00034879,31]
[394141962,1763319046047,-299.701289,0.00034879,31]
[394141963,1763319046056,-299.701289,0.00034879,31]
[394141964,1763319046065,-151.0,0.00034879,31]
[394141965,1763319046074,-225.032242,0.00034879,31]
[394141966,1763319046083,-299.701289,0.00034879,31]
[394141967,1763319046092,-199.757326,0.00034879,31]
[394141968,1763319046102,-199.757326,0.00034879,31]
[394141969,1763319046252,-199.757326,0.00034879,31]
[394141970,1763319046262,-199.757326,0.00034879,31]
[394141971,1763319046274,-151.0,0.00034879,31]
[394141972,1763319046283,-151.0,0.00034879,31]
[394141973,1763319046293,-151.0,0.00034879,31]
[394141974,1763319046303,-151.0,0.00034879,31]
[394141975,1763319046314,-151.0,0.00034879,31]
[394141976,1763319046323,-151.0,0.00034879,31]
[394141977,1763319046332,-151.0,0.00034879,31]
[394141978,1763319046342,-151.0,0.00034879,31]
[394141979,1763319046351,-157.206441,0.00034879,31]
[394141980,1763319046360,-510.053752,0.00034879,28]
[394141981,1763319046370,-510.053752,0.00034879,28]
[394141982,1763319046379,-510.053752,0.00034879,28]
[394141983,1763319046388,-510.053752,0.00034879,28]
[394141984,1763319046397,-151.0,0.00034879,31]
[394141985,1763319046406,-275.190011,0.00034879,31]
[394141986,1763319046416,-151.0,0.00034879,31]
[394141987,1763319046426,-162.727591,0.00034879,31]
[394141988,1763319046435,-151.0,0.00034879,31]
[394141989,1763319046445,-151.0,0.00034879,31]
[394141990,1763319046455,-151.0,0.00034879,31]
[394141991,1763319046464,-151.0,0.00034879,31]
[394141992,1763319046475,-151.0,0.00034879,31]
[394141993,1763319046485,-166.249349,0.00034879,31]
[394141994,1763319046494,-151.0,0.00034879,31]
[394141995,1763319046504,-151.0,0.00034879,31]
[394141996,1763319046514,-151.0,0.00034879,31]
[394141997,1763319046523,-151.0,0.00034879,30]
[394141998,1763319046532,-151.0,0.00034879,31]
[394141999,1763319046542,-151.0,0.00034879,31]
[394142000,1763319046551,-151.0,0.00034879,31]
[394142001,1763319046561,-151.0,0.00034879,31]
[394142002,1763319046570,-508.655404,0.00034879,31]
[394142003,1763319046580,-151.0,0.00034879,31]
[394142004,1763319046589,-508.655404,0.00034879,31]
[394142005,1763319046598,-508.655404,0.00034879,31]
[394142006,1763319046607,-508.655404,0.00034879,31]
[394142007,1763319046616,-151.0,0.00034879,31]
[394142008,1763319046626,-151.0,0.00034879,31]
[394142009,1763319046635,-151.0,0.00034879,31]
[394142010,1763319046644,-174.433953,0.00034879,31]
[394142011,1763319046654,-174.433953,0.00034879,31]
[394142012,1763319046663,-174.433953,0.00034879,31]
[394142013,1763319046673,-151.0,0.00034879,31]
[394142014,1763319046682,-151.0,0.00034879,31]
[394142015,1763319046691,-174.433953,0.00034879,31]
[394142016,1763319046700,-151.0,0.00034879,31]
[394142017,1763319046709,-151.0,0.00034879,31]
[394142018,1763319046718,-151.0,0.00034879,31]
[394142019,1763319046728,-151.0,0.00034879,31]
[394142020,1763319046737,-151.0,0.00034879,31]
[394142021,1763319046746,-188.279895,0.00034879,31]
[394142022,1763319046756,-188.279895,0.00034879,31]
[394142023,1763319046766,-151.0,0.00034879,31]
[394142024,1763319046776,-188.279895,0.00034879,31]
[394142025,1763319046785,-151.0,0.00034879,31]
[394142026,1763319046795,-188.279895,0.00034879,31]
[394142027,1763319046804,-151.0,0.00034879,31]
[394142028,1763319046815,-151.0,0.00034879,31]
[394142029,1763319046824,-151.0,0.00034879,31]
[394142030,1763319046834,-151.0,0.00034879,31]
[394142031,1763319046843,-151.0,0.00034879,31]
[394142032,1763319046853,-151.0,0.00034879,31]
[394142033,1763319046862,-158.393141,0.00034879,31]
[394142034,1763319046872,-151.0,0.00034879,31]
[394142035,1763319046881,-151.0,0.00034879,31]
[394142036,1763319046891,-151.0,0.00034879,31]
[394142037,1763319046900,-151.0,0.00034879,31]
[394142038,1763319046910,-151.0,0.00034879,31]
[394142039,1763319046920,-151.0,0.00034879,31]
[394142040,1763319046929,-199.111985,0.00034879,31]
[394142041,1763319046939,-235.011081,0.00034879,31]
[394142042,1763319046949,-151.0,0.00034879,31]
[394142043,1763319046959,-235.011081,0.00034879,31]
[394142044,1763319046968,-151.0,0.00034879,31]
[394142045,1763319046979,-151.0,0.00034879,31]
[394142046,1763319046988,-235.011081,0.00034879,31]
[394142047,1763319046997,-235.011081,0.00034879,31]
[394142048,1763319047006,-151.0,0.00034879,31]
[394142049,1763319047015,-151.0,0.00034879,31]
[394142050,1763319047025,-151.0,0.00034879,31]
[394142051,1763319047034,-216.330313,0.00034879,30]
[394142052,1763319047044,-216.330313,0.00034879,30]
[394142053,1763319047054,-216.330313,0.00034879,30]
[394142054,1763319047064,-177.820604,0.00034879,31]
[394142055,1763319047073,-216.330313,0.00034879,30]
[394142056,1763319047083,-177.820604,0.00034879,31]
[394142057,1763319047093,-177.820604,0.00034879,31]
[394142058,1763319047103,-177.820604,0.00034879,31]
[394142059,1763319047114,-151.0,0.00034879,31]
[394142060,1763319047123,-151.0,0.00034879,31]
[394142061,1763319047133,-151.0,0.00034879,31]
[394142062,1763319047142,-151.0,0.00034879,31]
[394142063,1763319047154,-767.580442,0.00034879,31]
[394142064,1763319047164,-767.580442,0.00034879,31]
[394142065,1763319047173,-767.580442,0.00034879,31]
[394142066,1763319047182,-767.580442,0.00034879,31]
[394142067,1763319047191,-2119.67788,0.00034879,31]
[394142068,1763319047201,-155.46606,0.00034879,31]
[394142069,1763319047212,-2119.67788,0.00034879,31]
[394142070,1763319047222,-2119.67788,0.00034879,31]
[394142071,1763319047237,-151.0,0.00034879,31]
[394142072,1763319047247,-2119.67788,0.00034879,31]
[394142073,1763319047256,-151.0,0.00034879,31]
[394142074,1763319047266,-482.970846,0.00034879,31]
[394142075,1763319047275,-482.970846,0.00034879,31]
[394142076,1763319047285,-151.0,0.00034879,31]
[394142077,1763319047294,-482.970846,0.00034879,31]
[394142078,1763319047304,-482.970846,0.00034879,31]
[394142079,1763319047313,-151.0,0.00034879,31]
[394142080,1763319047323,-151.0,0.00034879,31]
[394142081,1763319047332,-151.0,0.00034879,31]
[394142082,1763319047342,-151.0,0.00034879,31]
[394142083,1763319047351,-151.0,0.00034879,31]
[394142084,1763319047361,-151.0,0.00034879,31]
[394142085,1763319047370,-151.0,0.00034879,31]
[394142086,1763319047380,-151.0,0.00034879,31]
[394142087,1763319047390,-151.0,0.00034879,31]
[394142088,1763319047400,-151.0,0.00034879,31]
[394142089,1763319047409,-151.0,0.00034879,31]
[394142090,1763319047419,-151.0,0.00034879,31]
[394142091,1763319047429,-151.0,0.00034879,10]
[394142092,1763319047438,-151.0,0.00034879,31]
[394142093,1763319047448,-151.0,0.00034879,10]
[394142094,1763319047458,-151.0,0.00034879,30]
[394142095,1763319047467,-151.0,0.00034879,31]
[394142096,1763319047479,-151.0,0.00034879,31]
[394142097,1763319047488,-151.0,0.00034879,31]
[394142098,1763319047497,-151.0,0.00034879,31]
[394142099,1763319047507,-151.0,0.00034879,31]
[394142100,1763319047516,-151.0,0.00034879,31]
[394142101,1763319047526,-151.0,0.00034879,31]
[394142102,1763319047535,-151.0,0.00034879,31]
[394142103,1763319047545,-300.0,0.00034893,2]
[394142104,1763319047554,-150.0,0.00034898,2]
[394142105,1763319047564,-150.0,0.00034899,12]
[394142106,1763319047573,-1000.0,0.000349,120]
[394142107,1763319047583,-300.0,0.00034902,2]